Cogmind - Beta 15 @@@ ROGUE MODE // 2025.07.19 @ 20:42:32 Player: Zorlord Result: Destroyed by Y-45 Defender with Heavy Assault Rifle Performance ------------- Evolutions (2) 1000 Regions Visited (3) 600 Robots Destroyed (31) 155 Value Destroyed (706) 706 Prototype IDs (2) 40 Alien Tech Used (0) 0 Bonus (0) 0 TOTAL SCORE: 2501 Bonus ------- None Cogmind --------- Core Integrity 0/550 Matter 118/300 Energy 75/100 System Corruption 0% Temperature Cool (23) Movement Walking (120) Location -8/Materials Parts ------- > --- POWER (1) -------- (None) > --- PROPULSION (4) --- Aluminum Leg > --- UTILITY (3) ------ (None) > --- WEAPON (3) ------- Particle Gun > --- INVENTORY (5) ---- High-capacity Battery (250) Structural Scanner Peak State ------------ > --- POWER ------------ Light Nuclear Core > --- PROPULSION ------- (None) > --- UTILITY ---------- Improved Heat Sink Small Storage Unit > --- WEAPON ----------- Medium Laser Medium Laser Light Assault Rifle > --- INVENTORY -------- Light Ion Engine High-capacity Battery Structural Scanner [Rating: 10] Favorites ----------- Power Ion Engine Engine Ion Engine Power Core Light Nuclear Core Propulsion Aluminum Leg Leg Aluminum Leg Utility Small Storage Unit Device Structural Scanner Storage Small Storage Unit Protection Light Armor Plating Weapon Light Assault Rifle Energy Gun Medium Laser Ballistic Gun Light Assault Rifle Launcher Grenade Launcher Build | -11 -10 -9 -8 ------- Run | Yrd Mat Mat Mat Slots Evolved 4 | . . 2 2 Power . | . . . . Propulsion 2 | . . 2 . Utility 1 | . . . 1 Weapon 1 | . . . 1 Parts Attached 22 | 6 1 9 6 Power 5 | 1 1 2 1 Engine 4 | 1 1 2 . Core 1 | . . . 1 Reactor . | . . . . Propulsion 4 | 2 . 1 1 Treads . | . . . . Leg 4 | 2 . 1 1 Wheel . | . . . . Hover . | . . . . Flight . | . . . . Utility 4 | 1 . 2 1 Device 2 | . . 1 1 Storage 1 | 1 . . . Processor . | . . . . Hackware . | . . . . Protection 1 | . . 1 . Artifact . | . . . . Weapon 9 | 2 . 4 3 Energy Gun 4 | 1 . 1 2 Energy Cannon . | . . . . Ballistic Gun 4 | 1 . 2 1 Ballistic Cannon . | . . . . Launcher 1 | . . 1 . Special Weapon . | . . . . Impact Weapon . | . . . . Slashing Weapon . | . . . . Piercing Weapon . | . . . . Special Melee Weapon . | . . . . Unidentified Prototypes . | . . . . Parts Lost 19 | . 2 9 8 Power 4 | . 1 2 1 Propulsion 3 | . . 3 . Utility 4 | . . 1 3 Weapon 8 | . 1 3 4 Highest Loss Streak 6 | . 1 4 6 To Critical Strikes 2 | . 1 1 . Average Backups 5 | 1 5 6 3 Power 1 | . 1 1 . Propulsion . | . . . . Utility 2 | . 1 2 2 Weapon 2 | . 2 2 1 Tool/Special . | . . . . Unused Backups 2 | . . . 2 Power . | . . . . Propulsion . | . . . . Utility 2 | . . . 2 Weapon . | . . . . Tool/Special . | . . . . Average Slot Usage (%) 64 | . 77 65 41 Engine 10 | . 12 10 7 Leg 15 | . 28 13 . Device 3 | . . 6 1 Storage 11 | . 14 11 7 Protection 2 | . . 2 4 Energy Gun 5 | . 7 2 10 Ballistic Gun 12 | . 14 15 3 Launcher 2 | . . 2 4 Peak Build Rating 10 | 6 6 8 10 Average Rating 5 | 5 5 6 5 On Entrance 4 | . 6 5 5 Naked Turns 1 | . . . 1 Heaviest Build 16 | 12 12 16 16 Greatest Support 20 | 20 20 20 10 Greatest Overweight (x) 5 | . . 5 5 Average Overweight (x) . | . . . 4 Largest Inventory Capacity 8 | 8 8 8 8 Average Capacity 7 | 6 8 8 7 Most Carried 8 | 2 8 8 4 Average Carried 5 | 1 5 6 3 Final Capacity 8 | 8 8 8 5 Final Carried 8 | 2 8 4 2 Class Distribution -------------------- 90% | Mutant 5% | Scavenger-Mutant 4% | Gunner Dominant Class ---------------- Mutant | -10/Materials Mutant | -9/Materials Mutant | -8/Materials Resources | -11 -10 -9 -8 ----------- Run | Yrd Mat Mat Mat Matter Collected 368 | 226 45 30 67 Remotely . | . . . . Salvage Created 749 | . 238 307 204 Parts 53 | . 13 26 14 Haulers Intercepted . | . . . . Recyclers Shooed 1 | . 1 . . Parts Field Recycled . | . . . . Retrieved Matter . | . . . . Parts Self-Destructed . | . . . . Prevented . | . . . . Kills | -11 -10 -9 -8 ------- Run | Yrd Mat Mat Mat Combat Hostiles Destroyed 23 | . 7 11 5 Guns 17 | . 7 7 3 AOE 6 | . . 4 2 Classes Destroyed 9 | . 3 5 1 Worker 1 | . . 1 . Builder 2 | . . 1 1 Mechanic 1 | . . 1 . Operator 2 | . . 1 1 Watcher 2 | . 1 1 . Swarmer 11 | . 3 8 . Grunt 9 | . 4 1 4 Duelist 1 | . . . 1 Sentry 2 | . . 2 . Best Kill Streak 7 | . 3 7 2 Combat Bots Only 4 | . 3 4 2 Max Kills in Single Turn 4 | . 1 4 2 Gunslinging . | . . . . Exploded 4 | . . 4 1 Melee . | . . . . Uniques/NPCs Destroyed . | . . . . Combat | -11 -10 -9 -8 -------- Run | Yrd Mat Mat Mat Hostile Shots Fired 247 | . 58 96 93 Missed 63 | . 13 23 27 Hits 184 | . 45 73 66 Melee 7 | . . . 7 Projectile 177 | . 45 73 59 Critical Strikes 4 | . 1 2 1 Damage Taken 2353 | . 479 719 1155 Core 855 | . 115 188 552 Absorbed by Shields . | . . . . Core Remaining (%) 69 | 100 54 53 . Volleys Fired 104 | . 41 34 29 Largest 3 | . 2 2 3 Hottest 120 | . 60 80 120 Shots Fired 181 | . 70 66 45 Gun 171 | . 70 60 41 Cannon . | . . . . Launcher 10 | . . 6 4 Special . | . . . . Kinetic 111 | . 41 54 16 Thermal 60 | . 29 6 25 Explosive 10 | . . 6 4 Electromagnetic . | . . . . Robot Hit Streak 13 | . 13 9 4 Robot Miss Streak 4 | . 3 4 4 Penetration Max . | . . . . Secondary Targets . | . . . . Shots Hit Robots 104 | . 50 27 27 Core Hits 66 | 3 16 28 19 Critical Kills . | . . . . Critical Parts Destroyed 1 | . . 1 . Critical Strikes 3 | . . 1 2 Burn 2 | . . . 2 Destroy 1 | . . 1 . Melee Attacks . | . . . . Impact . | . . . . Slashing . | . . . . Piercing . | . . . . Sneak Attacks . | . . . . Combat Hostiles . | . . . . Follow-up Attacks . | . . . . Damage Inflicted 1677 | 24 482 650 521 Guns 1074 | . 482 288 304 Cannons . | . . . . Explosions 579 | . . 362 217 Melee . | . . . . Ramming 24 | 24 . . . Kinetic 598 | . 220 276 102 Thermal 476 | . 262 12 202 Explosive 579 | . . 362 217 Electromagnetic . | . . . . Impact . | . . . . Slashing . | . . . . Piercing . | . . . . Highest Corruption . | . . . . Average Corruption . | . . . . Corruption Purged . | . . . . Corruption Blocked . | . . . . Overload Shots . | . . . . Overflow Damage 26 | . . 26 . Projectiles . | . . . . Explosions 26 | . . 26 . Melee . | . . . . Knockbacks . | . . . . Impact . | . . . . Kinetic . | . . . . Secondary . | . . . . Self-Inflicted Damage 38 | . . 16 22 Shots 2 | . . 1 1 Rammed . | . . . . Targets Rammed 11 | 10 1 . . Kicked 11 | 10 1 . . Crushed . | . . . . Highest Temperature 173 | . 173 72 161 Average Temperature 61 | . 84 26 46 Received Heat Transfer 645 | . 186 63 396 Siege Activations . | . . . . Martial Activations . | . . . . Shielding Activations . | . . . . Robots Disrupted . | . . . . Combat Hostiles . | . . . . Robots Corrupted . | . . . . Combat Hostiles . | . . . . Parts Fried . | . . . . Impact Corruptions . | . . . . Robots Melted . | . . . . Combat Hostiles . | . . . . Parts Melted 5 | . 4 . 1 Heat Transferred 1340 | . 600 37 703 Parts Sabotaged . | . . . . Parts Stolen . | . . . . Parts Stripped . | . . . . Power Chain Reactions . | . . . . Alert | -11 -10 -9 -8 ------- Run | Yrd Mat Mat Mat Maximum Alert Level . | . . . . Low Security (%) 100 | 100 100 100 100 Level 1 . | . . . . Level 2 . | . . . . Level 3 . | . . . . Level 4 . | . . . . Level 5 . | . . . . High Security . | . . . . Max Security . | . . . . Peak Influence 145 | . 100 145 71 Initial 48 | . . 18 48 Average 39 | . 42 42 44 Influence Increases 653 | . 181 344 128 Destroy 0b10 Robot/C 460 | . 140 220 100 Destroy 0b10 Robot/NC 40 | . 5 25 10 Destroy Leader 104 | . 32 62 10 Successful Hack 15 | . 4 11 . Destroy Structure 34 | . . 26 8 Influence Decreases 633 | . 137 274 222 Entered New Map 92 | . . 26 66 Time Decay 370 | . 117 177 76 Lost Part 171 | . 20 71 80 Squads Dispatched 2 | . 1 1 . Investigation . | . . . . Extermination . | . . . . Reinforcement 2 | . 1 1 . Assault . | . . . . Garrison . | . . . . Intercept . | . . . . Searches Triggered . | . . . . Construction Impeded . | . . . . Haulers Reinforced . | . . . . Active Scanning Responses . | . . . . Cargo Convoy Interrupts . | . . . . Stealth | -11 -10 -9 -8 --------- Run | Yrd Mat Mat Mat Distress Signals 4 | . 1 2 1 Communications Jammed . | . . . . Distress Signals . | . . . . Times Spotted 45 | . 10 23 12 Peak Tracking Total 9 | . 3 9 8 Tactical Retreats . | . . . . Traps | -11 -10 -9 -8 ------- Run | Yrd Mat Mat Mat Traps Triggered . | . . . . Indirectly . | . . . . Trap Hack Attempts . | . . . . Triggered . | . . . . Disarmed . | . . . . Reprogrammed . | . . . . Reused . | . . . . Traps Extracted . | . . . . Installed . | . . . . Triggered . | . . . . Machines | -11 -10 -9 -8 ---------- Run | Yrd Mat Mat Mat Machines Disabled . | . . . . Max in Single Turn . | . . . . Machines Repaired . | . . . . Machines Dismantled . | . . . . Machines Sabotaged . | . . . . Overloaded Fab Kills . | . . . . Hacking | -11 -10 -9 -8 --------- Run | Yrd Mat Mat Mat Machines Accessed 6 | . 3 3 . Terminals 4 | . 1 3 . Fabricators . | . . . . Repair Stations 1 | . 1 . . Recycling Units 1 | . 1 . . Scanalyzers . | . . . . Garrison Access . | . . . . Total Hacks 14 | . 6 8 . Successful 10 | . 4 6 . Failed 4 | . 2 2 . Catastrophic . | . . . . Database Lockouts . | . . . . Manual . | . . . . Terminals 12 | . 4 8 . Fabricators . | . . . . Repair Stations 1 | . 1 . . Recycling Units 1 | . 1 . . Scanalyzers . | . . . . Garrison Access . | . . . . Terminal Hacks 9 | . 3 6 . Record 4 | . 2 2 . Prototype ID Bank 1 | . . 1 . Branch Access Points 1 | . . 1 . Locate Traps 1 | . 1 . . Dispatch Records 1 | . . 1 . Maintenance Status 1 | . . 1 . Fabricator Hacks . | . . . . Repair Station Hacks . | . . . . Recycling Unit Hacks 1 | . 1 . . Report Inventory 1 | . 1 . . Scanalyzer . | . . . . Garrison Access Hacks . | . . . . Unauthorized Hacks . | . . . . Terminals . | . . . . Fabricators . | . . . . Repair Stations . | . . . . Recycling Units . | . . . . Scanalyzers . | . . . . Garrison Access . | . . . . Data Cores Recovered 1 | . . . 1 Used . | . . . . Hacking Detections 2 | . 2 . . Full Trace Events 1 | . 1 . . Feedback Events . | . . . . Feedback Blocked . | . . . . Robot Schematics Acquired . | . . . . Robots Built . | . . . . Authchips . | . . . . Time . | . . . . Total Robot Build Rating . | . . . . Part Schematics Acquired . | . . . . Parts Built . | . . . . Authchips . | . . . . Time . | . . . . Total Part Build Rating . | . . . . Parts Repaired . | . . . . Time . | . . . . Parts Recycled . | . . . . Recycled Matter . | . . . . Retrieved Matter . | . . . . Retrieved Components . | . . . . Parts Scanalyzed . | . . . . Part Schematics Acquired . | . . . . Parts Damaged . | . . . . Bothacking | -11 -10 -9 -8 ------------ Run | Yrd Mat Mat Mat Used RIF Installer . | . . . . Robots Hacked . | . . . . Non-combat . | . . . . Combat . | . . . . Robot Hacks Applied . | . . . . Relay Couplers Released . | . . . . Fabnet Peak Effective % . | . . . . Robots Rewired . | . . . . Allies Hacked . | . . . . Hacks Repelled . | . . . . Allies | -11 -10 -9 -8 -------- Run | Yrd Mat Mat Mat Total Allies . | . . . . Largest Group . | . . . . Highest-Rated Group . | . . . . Highest-Rated Ally . | . . . . Total Orders . | . . . . Ally Attacks . | . . . . Total Damage . | . . . . Kills . | . . . . Allies Corrupted . | . . . . Allies Melted . | . . . . Intel | -11 -10 -9 -8 ------- Run | Yrd Mat Mat Mat Active Infowar (turns) 372 | . . 372 . Structural 372 | . . 372 . Robot Analysis Total . | . . . . Derelict Logs Recovered . | . . . . Drone Launches . | . . . . Drone Recoveries . | . . . . Exploration | -11 -10 -9 -8 ------------- Run | Yrd Mat Mat Mat Turns Passed 1202 | 95 314 612 181 Spaces Moved 574 | 62 153 320 39 Core 93 | 2 . 54 37 Treads . | . . . . Legs 481 | 60 153 266 2 Wheels . | . . . . Hover . | . . . . Flight . | . . . . Fastest Speed 50 | 50 120 100 50 Average Speed 151 | 117 120 158 271 Slowest Speed 300 | 120 120 300 300 Overloaded Moves . | . . . . Propulsion Burnouts . | . . . . Robots Hopped . | . . . . Potential Cave-ins . | . . . . Cave-ins Triggered . | . . . . Exploration Rate (%) 20 | 4 33 35 8 Regions Visited 3 Branch Regions . Pre-discovered Areas . | . . . . Known Exits Taken . | . . . . Unknown Exits Taken 3 | 1 1 1 . Scrap Searched . | . . . . Spaces Dug . | . . . . Terrain Destroyed 36 | . . 29 7 Melee . | . . . . Projectile . | . . . . AOE 36 | . . 29 7 Terrain Rammed . | . . . . Walls Destroyed . | . . . . Machines Disabled . | . . . . Actions | -11 -10 -9 -8 --------- Run | Yrd Mat Mat Mat Total 742 | 79 221 367 75 Wait 21 | . 19 2 . Move 571 | 61 152 319 39 Hop . | . . . . Pick Up 12 | 2 7 3 . Fast Attach 11 | 6 . 2 3 Attach 11 | . 1 7 3 Detach . | . . . . Swap 1 | . . . 1 Drop . | . . . . Fire 104 | . 41 34 29 Melee . | . . . . Ram . | . . . . Kick 11 | 10 1 . . Crush . | . . . . Escape Stasis . | . . . . Rewire . | . . . . Trap . | . . . . Miscellaneous . | . . . . Route ------- -11/Scrapyard -10/Materials -9/Materials (discovered 2 exits: [*Mat] / Min) -8/Materials History --------- Turn | Location | Event 9 | -11/Scrapyard | Discovered new exit (range 16) 96 | -11/Scrapyard | Entered Materials 313 | -10/Materials | Build established: Mutant 405 | -10/Materials | Discovered new exit (range 4) 410 | -10/Materials | Entered another Materials area 410 | -9/Materials | Evolved 2 slots: Propulsion x2 527 | -9/Materials | Identified exit to Mines 835 | -9/Materials | Lost 3 parts (1p1n1u) 891 | -9/Materials | Lost 4 parts (1p1n2w) 1007 | -9/Materials | Discovered new exit (range 3) 1022 | -9/Materials | Entered another Materials area 1022 | -8/Materials | Evolved 2 slots: Utility x1, Weapon x1 1181 | -8/Materials | Core integrity fell below 50% 1192 | -8/Materials | Core integrity fell below 20% 1203 | -8/Materials | Destroyed by Y-45 Defender with Heavy Assault Rifle Last Messages --------------- 01157_ R-06 Scavenger collects Wheel. 01158_ R-06 Scavenger collects Katana. 01162_ R-06 Scavenger collects Imp. Heat Sink. 01164_ Lgt. Nuclear Core severed. 01168_ Med. Laser destroyed. 01172_ R-06 Scavenger collects Lgt. Nuclear Core. 01176_ Med. Laser destroyed. 01176_ Imp. Heat Sink destroyed. 01177_ L-31 Rogue destroyed. 01178_ Sml. Storage Unit destroyed. 01185_ G-47 Trooper destroyed. 01192_ Lgt. Assault Rifle destroyed. 01192_ Lgt. Ion Engine destroyed. 01193_ Acquired Aluminum Leg. 01197_ Acquired Particle Gun. 01199_ K-01 Serf collects debris. 01202_ Imp. Heat Sink melted. 01202_ G-47 Trooper destroyed. 01203_ Acquired 40 matter. Map ----- +----------------------------------------------------+ | | | | | | | ?????????????????????????????????????????????????? | | ?????????????????????????????????????????????????? | | ?????????????????????????????????????????????????? | | ?????????????????????????????????????????????????? | | ?????????????????????????????????????????########? | | ?????????????????????????????????????????? #? | | ?????????????????????????????????????????? #? | | ??????????????????????????????????????????? """ ## | | ?????????????????????????????????????????# """ # | | ??????????????????????????????? ????????# """ | | ??????????????????????###+###?? ????????# | | ??????????????????##### ###+#############+### | | ?????????????????? | | ?????????????????? | | ??????????????????? | | ??????????????????????# ######### | | ?????????????????????#?#k %% #???????? | | ????????????????????? # % #???????? | | ?????????????????????? # % !! #???????? | | ???????????????????????+ ! =! #???????? | | ???????????????????????# !! = ???? | | ???????????????????????# ?? | | ???????????????????????# @* u ??? | | ???????????????????????#[%Y###u#############+###?? | | ???????????????????????# !#? ????????????????? | | ???????????????????????# ## """???????????????? | | ???????????????????????# ##! """"??????????????? | | ???????????????????????# ## """""?????????????? | | ???????????????????????+ u+ """"??????????????? | | ???????????????????????# u## ""????????????????? | | ???????????????????????# ##! "?????????????????? | | ???????????????????????# ## "?????????????????? | | ???????????????????????# ## ??????????????????? | | ???????????????????????# #?##??????????????????? | | ???????????????????????# Y #?????????????????????? | | ???????????????????????# #?????????????????????? | | ???????????????????????# #?????????????????????? | | ??????????????????????? ?????????????????????? | | ??????????????????????? ??????????????????????? | | ???????????????????????? ??????????????????????? | | ?????????????????????????????????????????????????? | | ?????????????????????????????????????????????????? | | ?????????????????????????????????????????????????? | | ?????????????????????????????????????????????????? | | ?????????????????????????????????????????????????? | | ?????????????????????????????????????????????????? | | ?????????????????????????????????????????????????? | +----------------------------------------------------+ Best States ------------- Heat Dissipation 45 Energy Generation 14 Energy Capacity 250 Matter Stores 300 Matter Capacity 300 Sight Range 16 Terrain Scan Density 10 Armor Coverage 150 Evasion (%) 55 Item Schematics ----------------- None Robot Schematics ------------------ None Fabricated ------------ Nothing Repaired ---------- Nothing Alien Tech Used ----------------- None Achievements -------------- None Challenges ------------ None Game ------ Seed MobileAntimissileFilter Manual? 0 Play Time 00:15:42 Cumulative 6.5 hours Start 2025.07.17 @ 23:01:34 End 2025.07.19 @ 20:42:32 Sessions 2 Manual Loads 0 Difficulty Rogue Special Mode None Game No. 10 Rogue 10 Adventurer 0 Explorer 0 Win Type - Total 0 Types 0/0/0/0/0/0/0/0/0/0 Lore% 3 Gallery% 9 Achievement% 7 Wizard Run 0 Options --------- Layout 1 ASCII 0 Keyboard 0 Movement Numpad Keybinds 0 Fullscreen 1 Font 32/SmallcapsGlow Map View 50x35 Zoom Use 0% Tactical HUD 1 Map Filters NONE Filters NONE Steam 1 RUN: 4d13f3ba-54fa-4a57-9e6f-595d629b14db